Cogmind - Beta 10.2 @@@ ROGUE MODE // 2020.11.08 @ 23:39:09 // Halloween2020/ForbiddenLore Player: Shodan Result: Self-destructed Performance ------------- Evolutions (1) 500 Regions Visited (3) 600 Robots Destroyed (18) 90 Value Destroyed (396) 396 Prototype IDs (0) 0 Alien Tech Used (0) 0 Bonus (0) 0 TOTAL SCORE: 1586 Bonus ------- None Cogmind --------- Core Integrity 377/400 Matter 139/300 Energy 250/250 System Corruption 0% Temperature Cool (0) Movement Core (150) Ox2 Location -9/Materials Parts ------- > --- POWER (1) -------- Ion Engine > --- PROPULSION (2) --- (None) > --- UTILITY (4) ------ Small Storage Unit Targeting Computer > --- WEAPON (2) ------- (None) > --- INVENTORY (6) ---- Light Nuclear Core Peak State ------------ > --- POWER ------------ Ion Engine > --- PROPULSION ------- Aluminum Leg Aluminum Leg > --- UTILITY ---------- Small Storage Unit Tractor Beam > --- WEAPON ----------- Small Laser Light Assault Rifle > --- INVENTORY -------- Ion Engine Light Treads Light Treads Compact Wheel Compact Wheel Assault Rifle [Rating: 7] Favorites ----------- Power Ion Engine Engine Ion Engine Propulsion Compact Wheel Leg Aluminum Leg Wheel Compact Wheel Utility Small Storage Unit Device Tractor Beam Storage Small Storage Unit Processor Targeting Computer Weapon Light Assault Rifle Energy Gun Small Laser Ballistic Gun Light Assault Rifle Launcher Grenade Launcher Special Weapon Welding Torch Build | -11 -10 -10 -9 ------- Run | Scr Mat Min Mat Slots Evolved 2 | . . . 2 Power . | . . . . Propulsion . | . . . . Utility 2 | . . . 2 Weapon . | . . . . Parts Attached 14 | 1 10 2 1 Power . | . . . . Engine . | . . . . Core . | . . . . Reactor . | . . . . Propulsion 3 | . 3 . . Treads . | . . . . Leg . | . . . . Wheel 3 | . 3 . . Hover . | . . . . Flight . | . . . . Utility 2 | 1 1 . . Device 1 | 1 . . . Storage . | . . . . Processor 1 | . 1 . . Hackware . | . . . . Protection . | . . . . Artifact . | . . . . Weapon 9 | . 6 2 1 Energy Gun 1 | . . 1 . Energy Cannon . | . . . . Ballistic Gun 3 | . 3 . . Ballistic Cannon . | . . . . Launcher 3 | . 2 . 1 Special Weapon 2 | . 1 1 . Impact Weapon . | . . . . Slashing Weapon . | . . . . Piercing Weapon . | . . . . Special Melee Weapon . | . . . . Unidentified Prototypes . | . . . . Parts Lost 10 | . 3 5 2 Power . | . . . . Propulsion 3 | . 1 2 . Utility 1 | . 1 . . Weapon 6 | . 1 3 2 Highest Loss Streak 5 | . 2 5 2 Average Slot Usage (%) 86 | . 91 86 44 Engine 13 | . 14 14 11 Leg 1 | . 2 . . Wheel 21 | . 25 18 . Device 2 | . 3 . . Storage 13 | . 14 14 11 Processor 6 | . 3 14 11 Energy Gun 3 | . 1 4 11 Ballistic Gun 20 | . 23 18 . Launcher 1 | . 2 . . Naked Turns . | . . . . Heaviest Build 14 | 12 14 12 10 Greatest Support 32 | 20 32 32 3 Greatest Overweight (x) 3 | . . 3 3 Average Overweight (x) . | . . . 3 Largest Inventory Capacity 6 | 6 6 6 6 Average Capacity 6 | 6 6 6 6 Most Carried 6 | 6 6 4 2 Average Carried 4 | 6 5 3 1 Final Capacity 6 | 6 6 6 6 Final Carried 6 | 6 4 2 1 Class Distribution -------------------- 100% | Mutant Dominant Class ---------------- Mutant | -10/Materials Mutant | -10/Mines Mutant | -9/Materials Resources | -11 -10 -10 -9 ----------- Run | Scr Mat Min Mat Matter Collected 343 | 214 129 . . Remotely 49 | 10 39 . . Salvage Created 463 | 98 346 . 19 Parts 30 | 1 21 . 8 Haulers Intercepted 1 | . 1 . . Recyclers Shooed . | . . . . Parts Field Recycled . | . . . . Retrieved Matter . | . . . . Parts Self-Destructed . | . . . . Prevented . | . . . . Kills | -11 -10 -10 -9 ------- Run | Scr Mat Min Mat Combat Hostiles Destroyed 13 | . 9 1 3 Guns 4 | . 3 1 . AOE 9 | . 6 . 3 Classes Destroyed 7 | 1 4 1 1 Hauler 1 | . 1 . . Recycler 2 | 1 1 . . Operator 1 | . . . 1 Watcher 1 | . 1 . . Swarmer 6 | . 3 . 3 Grunt 6 | . 6 . . Demolisher 1 | . . 1 . Best Kill Streak 6 | 1 6 1 4 Combat Bots Only 5 | . 5 1 3 Max Kills in Single Turn 3 | 1 2 1 3 Gunslinging . | . . . . Exploded 3 | . 2 . 3 Melee . | . . . . Uniques/NPCs Destroyed . | . . . . Combat | -11 -10 -10 -9 -------- Run | Scr Mat Min Mat Damage Taken 859 | . 401 357 101 Core 257 | . 85 149 23 Absorbed by Shields . | . . . . Core Remaining (%) 53 | 100 . 6 . Volleys Fired 47 | 4 35 6 2 Largest 2 | 2 2 2 2 Hottest 70 | 60 40 60 70 Shots Fired 80 | 8 59 9 4 Gun 65 | 8 48 7 2 Cannon . | . . . . Launcher 11 | . 9 . 2 Special 4 | . 2 2 . Kinetic 54 | 4 48 2 . Thermal 15 | 4 2 7 2 Explosive 11 | . 9 . 2 Electromagnetic . | . . . . Robot Hit Streak 15 | 3 9 15 2 Robot Miss Streak 2 | 1 2 . 1 Penetration Max . | . . . . Secondary Targets . | . . . . Shots Hit Robots 53 | 5 37 9 2 Core Hits 30 | 2 20 3 5 Critical Hits 1 | . 1 . . Critical Kills 1 | . 1 . . Critical Parts Destroyed . | . . . . Melee Attacks . | . . . . Impact . | . . . . Slashing . | . . . . Piercing . | . . . . Sneak Attacks . | . . . . Combat Hostiles . | . . . . Follow-up Attacks . | . . . . Damage Inflicted 1198 | 59 830 84 225 Guns 542 | 59 394 78 11 Cannons . | . . . . Explosions 650 | . 436 . 214 Melee . | . . . . Ramming . | . . . . Kinetic 441 | 26 394 21 . Thermal 107 | 33 . 63 11 Explosive 650 | . 436 . 214 Electromagnetic . | . . . . Impact . | . . . . Slashing . | . . . . Piercing . | . . . . Highest Corruption . | . . . . Average Corruption . | . . . . Corruption Purged . | . . . . Overload Shots . | . . . . Overflow Damage 9 | . 6 . 3 Projectiles . | . . . . Explosions 9 | . 6 . 3 Melee . | . . . . Knockbacks . | . . . . Impact . | . . . . Kinetic . | . . . . Secondary . | . . . . Self-Inflicted Damage 103 | . 63 . 40 Shots 4 | . 3 . 1 Rammed . | . . . . Targets Rammed . | . . . . Kicked . | . . . . Crushed . | . . . . Highest Temperature 20 | 20 18 . . Average Temperature 9 | 13 7 . . Received Heat Transfer 162 | . 162 . . Siege Activations . | . . . . Robots Corrupted . | . . . . Combat Hostiles . | . . . . Parts Fried . | . . . . Impact Corruptions . | . . . . Robots Melted . | . . . . Combat Hostiles . | . . . . Parts Melted . | . . . . Heat Transferred 275 | 75 . 175 25 Parts Sabotaged . | . . . . Parts Stolen . | . . . . Parts Stripped . | . . . . Power Chain Reactions . | . . . . Missiles Intercepted . | . . . . Alert | -11 -10 -10 -9 ------- Run | Scr Mat Min Mat Peak Influence 367 | 5 367 142 129 Initial 142 | . 3 142 24 Average 167 | 3 225 117 44 Maximum Alert Level 1 | . 1 . . Low Security (%) 72 | 100 52 100 100 Level 1 27 | . 47 . . Level 2 . | . . . . Level 3 . | . . . . Level 4 . | . . . . Level 5 . | . . . . High Security . | . . . . Max Security . | . . . . Squads Dispatched 3 | . 2 . 1 Investigation 2 | . 2 . . Extermination . | . . . . Reinforcement 1 | . . . 1 Assault . | . . . . Garrison . | . . . . Intercept . | . . . . Construction Impeded . | . . . . Haulers Reinforced . | . . . . Stealth | -11 -10 -10 -9 --------- Run | Scr Mat Min Mat Distress Signals 1 | . 1 . . Communications Jammed . | . . . . Distress Signals . | . . . . Times Spotted 21 | . 12 2 7 Peak Tracking Total 6 | . 5 2 6 Tactical Retreats 1 | . 1 . . Traps | -11 -10 -10 -9 ------- Run | Scr Mat Min Mat Traps Triggered . | . . . . Indirectly . | . . . . Trap Hack Attempts . | . . . . Triggered . | . . . . Disarmed . | . . . . Reprogrammed . | . . . . Reused . | . . . . Traps Extracted . | . . . . Installed . | . . . . Triggered . | . . . . Machines | -11 -10 -10 -9 ---------- Run | Scr Mat Min Mat Machines Disabled 2 | . 2 . . Max in Single Turn 1 | . 1 . . Machines Sabotaged . | . . . . Garrisons Compromised . | . . . . Overloaded Fab Kills . | . . . . Fab Network Shutdowns . | . . . . Hacking | -11 -10 -10 -9 --------- Run | Scr Mat Min Mat Machines Accessed 3 | . 3 . . Terminals 2 | . 2 . . Fabricators . | . . . . Repair Stations . | . . . . Recycling Units 1 | . 1 . . Scanalyzers . | . . . . Garrison Access . | . . . . Total Hacks 7 | . 7 . . Successful 2 | . 2 . . Failed 5 | . 5 . . Catastrophic . | . . . . Database Lockouts . | . . . . Manual 6 | . 6 . . Terminals 6 | . 6 . . Fabricators . | . . . . Repair Stations . | . . . . Recycling Units 1 | . 1 . . Scanalyzers . | . . . . Garrison Access . | . . . . Terminal Hacks 1 | . 1 . . Recall Investigation 1 | . 1 . . Fabricator Hacks . | . . . . Repair Station Hacks . | . . . . Recycling Unit Hacks 1 | . 1 . . Retrieve Components 1 | . 1 . . Scanalyzer . | . . . . Garrison Access Hacks . | . . . . Unauthorized Hacks . | . . . . Terminals . | . . . . Fabricators . | . . . . Repair Stations . | . . . . Recycling Units . | . . . . Scanalyzers . | . . . . Garrison Access . | . . . . Data Cores Recovered . | . . . . Used . | . . . . Hacking Detections 2 | . 2 . . Full Trace Events 2 | . 2 . . Feedback Events . | . . . . Feedback Blocked . | . . . . Robot Schematics Acquired . | . . . . Robots Built . | . . . . Matter . | . . . . Time . | . . . . Total Robot Build Rating . | . . . . Part Schematics Acquired . | . . . . Parts Built . | . . . . Matter . | . . . . Time . | . . . . Total Part Build Rating . | . . . . Parts Repaired . | . . . . Time . | . . . . Parts Recycled . | . . . . Recycled Matter . | . . . . Retrieved Matter . | . . . . Retrieved Components 3 | . 3 . . Parts Scanalyzed . | . . . . Part Schematics Acquired . | . . . . Parts Damaged . | . . . . Bothacking | -11 -10 -10 -9 ------------ Run | Scr Mat Min Mat Used RIF Installer . | . . . . Robots Hacked . | . . . . Non-combat . | . . . . Combat . | . . . . Robot Hacks Applied . | . . . . Relay Couplers Released . | . . . . Robots Rewired . | . . . . Allies Hacked . | . . . . Hacks Repelled . | . . . . Allies | -11 -10 -10 -9 -------- Run | Scr Mat Min Mat Total Allies 3 | . . 3 . Largest Group 3 | . . 3 . Highest-Rated Group 40 | . . 40 . Highest-Rated Ally 16 | . . 16 . Total Orders . | . . . . Ally Attacks 4 | . . 4 . Total Damage 41 | . . 41 . Kills . | . . . . Allies Corrupted 1 | . . 1 . Allies Melted . | . . . . Intel | -11 -10 -10 -9 ------- Run | Scr Mat Min Mat Robot Analysis Total . | . . . . Derelict Logs Recovered . | . . . . Drone Launches . | . . . . Drone Recoveries . | . . . . Exploration | -11 -10 -10 -9 ------------- Run | Scr Mat Min Mat Turns Passed 566 | 38 332 155 41 Spaces Moved 363 | 22 205 119 17 Core 35 | . . 18 17 Treads . | . . . . Legs 40 | 22 18 . . Wheels 288 | . 187 101 . Hover . | . . . . Flight . | . . . . Fastest Speed 100 | 120 100 100 200 Average Speed 111 | 120 101 115 200 Slowest Speed 200 | 120 120 200 200 Overloaded Moves . | . . . . Propulsion Burnouts . | . . . . Robots Hopped . | . . . . Cave-ins Triggered . | . . . . Exploration Rate (%) 17 | 4 40 19 6 Regions Visited 3 Branch Regions 1 Pre-discovered Areas . | . . . . Known Exits Taken . | . . . . Unknown Exits Taken 3 | 1 1 1 . Scrap Searched . | . . . . Spaces Dug . | . . . . Terrain Destroyed 24 | . 12 . 12 Melee . | . . . . Projectile . | . . . . AOE 24 | . 12 . 12 Terrain Rammed . | . . . . Walls Destroyed . | . . . . Machines Disabled . | . . . . Doors Sealed 1 | . 1 . . Actions | -11 -10 -10 -9 --------- Run | Scr Mat Min Mat Total 447 | 26 273 128 20 Wait 16 | . 14 2 . Move 360 | 21 204 118 17 Hop . | . . . . Pick Up 5 | . 5 . . Fast Attach 2 | 1 1 . . Attach 7 | . 4 2 1 Detach . | . . . . Swap 5 | . 5 . . Drop 5 | . 5 . . Fire 47 | 4 35 6 2 Melee . | . . . . Ram . | . . . . Kick . | . . . . Crush . | . . . . Escape Stasis . | . . . . Rewire . | . . . . Trap . | . . . . Miscellaneous . | . . . . Route ------- -11/Scrapyard -10/Materials -10/Mines -9/Materials History --------- Turn | Location | Event 1 | -11/Scrapyard | Discovered new exit (range 3) 39 | -11/Scrapyard | Entered Materials 242 | -10/Materials | Discovered new exit (range 9) 316 | -10/Materials | Build established: Mutant 371 | -10/Materials | Entered Mines 375 | -10/Mines | Assisted by bots powering up and referring to "LRC-V3" 406 | -10/Mines | Discovered new exit (range 7) 458 | -10/Mines | Assembled infested the area 474 | -10/Mines | Core integrity fell below 50% 487 | -10/Mines | Core integrity fell below 20% 513 | -10/Mines | Lost 5 parts (2n3w) 526 | -10/Mines | Entered Materials 526 | -9/Materials | Evolved 2 slots: Utility x2 567 | -9/Materials | Self-destructed Last Messages --------------- 00490_ U-05 Engineer builds a Wall. 00494_ The unstable cave ceiling collapses. 00494_ U-05 Engineer lays Concrete. 00496_ The unstable cave ceiling collapses. 00496_ U-05 Engineer lays Concrete. 00497_ The unstable cave ceiling collapses. 00498_ U-05 Engineer builds a Wall. 00501_ The unstable cave ceiling collapses. PARAMETERS=UTILITY_2 LOCATION=UNKNOWN GOAL=ESCAPE 00551_ O-16 Technician: "IFF HANDSHAKE FAILED. SECURING TERMINAL." 00552_ ALERT: Hostiles spotted, dispatching reinforcements to Terminal M005. 00553_ T-07 Excavator is excavating. 00561_ S-10 Pest destroyed. 00561_ Destroyed Datajack. 00564_ O-16 Technician destroyed. 00565_ Sml. Laser destroyed. 00567_ Grenade Launcher destroyed. Map ----- +----------------------------------------------------+ | | | | | | | | | | | ?????????????????????????????????????????????????? | | ?????????????????????????????????????????????????? | | ?????????????????????????????????????????????????? | | ?????????????????????????????????????????????????? | | ?????????????????????????????????????????????????? | | ?????????????????????????????????????????????????? | | ?????????????????????????????????????????????????? | | ?????????????????????????????????????????????????? | | ?????????????????????????????????????????????????? | | ?????????????????????????????????????????????????? | | ?????????????????????????????????????????????????? | | ??????????????????????#######????????????????????? | | ???????????????????# #????????????????????? | | ???????????????????# """ #############????????? | | ???????????????????# """ ## # #????????? | | ???????????????????# """ ## # #????????? | | ???????????????????# ## # #????????? | | ???????????????????# "" [## + #????????? | | ???????????????????# "T ## # #????????? | | ???????????????????# "" ## # #????????? | | ???????????????????# [@ ##+###### #????????? | | ???????????????????#### #### #???? #???????? | | ?????????????????????# *%= #???? ??????? | | ??????????????? s= #####???? ?????? | | ??????????? = # ???????# ????? | | ??????????? # ???????# ###+#???? | | ?????????? =# ??????#######???????? | | ??????????? %# ????????????????????? | | ??????????? Y+ ???????????????????? | | ???????????## ######## # "???????????????????? | | ???????????? ????????# # [ ""??????????????????? | | ?????????????????????# ? "???????????????????? | | ?????????????????????## ?? ???????????????????? | | ??????????????????????# ??###???????????????????? | | ?????????????????????? ????????????????????????? | | ?????????????????????? ????????????????????????? | | ?????????????????????? ????????????????????????? | | ?????????????????????? ????????????????????????? | | ?????????????????????????????????????????????????? | | ?????????????????????????????????????????????????? | | ?????????????????????????????????????????????????? | | ?????????????????????????????????????????????????? | | ?????????????????????????????????????????????????? | | ?????????????????????????????????????????????????? | | ?????????????????????????????????????????????????? | +----------------------------------------------------+ Best States ------------- Heat Dissipation 28 Energy Generation 10 Energy Capacity 250 Matter Stores 300 Matter Capacity 300 Sight Range 16 Terrain Scan Density 10 Evasion (%) 40 Targeting Accuracy 5 Item Schematics ----------------- None Robot Schematics ------------------ None Fabricated ------------ Nothing Alien Tech Used ----------------- None Achievements -------------- None Challenges ------------ None Game ------ Seed TargetRemoteWell Manual? 0 Play Time 00:08:05 Cumulative 106.2 hours Start 2020.11.08 @ 23:31:02 End 2020.11.08 @ 23:39:09 Sessions 1 Manual Loads 0 Difficulty Rogue Special Mode Halloween2020/ForbiddenLore Game No. 115 Rogue 115 Adventurer 0 Explorer 0 Win Type - Total 1 Types 1/0/0/0/0/0/0/0/0 Lore% 60 Gallery% 65 Achievement% 50 Wizard Run 0 Options --------- ASCII 0 Keyboard 0 Movement Mouse Keybinds 0 Fullscreen 1 Font 24/Smallcaps Map View 76x50 Tactical HUD 1 Map Filters NONE Filters NONE Steam 1 RUN: b9ec269c-2d12-4152-be14-36c4e05da339